fUSD/lending_fUSD_20251210
["ID","MTS","AMOUNT","RATE_DAILY","PERIOD"]
[398061945,1765345854951,-500.0,0.00015158,2]
[398061946,1765345854965,-719.65,0.00015158,2]
[398061947,1765345854979,-500.0,0.00015158,2]
[398061948,1765345854993,-1286.01,0.00015158,2]
[398061949,1765345855008,-500.0,0.00015158,2]
[398061950,1765345855030,-744.26,0.00015158,2]
[398061951,1765345855045,-500.0,0.00015158,2]
[398061952,1765345855062,-648.28,0.00015158,2]
[398061953,1765345855078,-696.52,0.00015158,2]
[398061954,1765345855093,-500.0,0.00015158,2]
[398061955,1765345855110,-500.0,0.00015158,2]
[398061956,1765345855124,-500.0,0.00015158,2]
[398061957,1765345855139,-197.47601329,0.00015158,2]
[398061958,1765345855153,-984.08,0.00015158,2]
[398061959,1765345855168,-762.73,0.00015158,2]
[398061960,1765345855182,-520.05,0.00015158,2]
[398061961,1765345855197,-212.59815989,0.00015158,2]
[398061962,1765345855212,-562.5,0.00015158,2]
[398061963,1765345855227,-783.84,0.00015158,2]
[398061964,1765345855241,-3170.35,0.00015158,2]
[398061965,1765345855256,-500.0,0.00015158,2]
[398061966,1765345855271,-500.0,0.00015158,2]
[398061967,1765345855285,-500.0,0.00015158,2]
[398061968,1765345855300,-1528.17,0.00015158,2]
[398061969,1765345855314,-500.0,0.00015158,2]
[398061970,1765345855329,-500.0,0.00015158,2]
[398061971,1765345855344,-500.0,0.00015158,2]
[398061972,1765345855359,-500.0,0.00015158,2]
[398061973,1765345855374,-649.89,0.00015158,2]
[398061974,1765345855388,-500.0,0.00015158,2]
[398061975,1765345855403,-500.0,0.00015158,2]
[398061976,1765345855418,-500.0,0.00015158,2]
[398061977,1765345855433,-1435.56,0.00015158,2]
[398061978,1765345855448,-1000.0,0.00015158,2]
[398061979,1765345855463,-665.7,0.00015158,2]
[398061980,1765345855477,-500.0,0.00015158,2]
[398061981,1765345855492,-500.0,0.00015158,2]
[398061982,1765345855506,-587.61,0.00015158,2]
[398061983,1765345855520,-710.89,0.00015158,2]
[398061984,1765345855535,-500.0,0.00015158,2]
[398061985,1765345855549,-1083.4,0.00015158,2]
[398061986,1765345855564,-500.0,0.00015158,2]
[398061987,1765345855577,-3726.8,0.00015158,2]
[398061988,1765345855592,-1306.31,0.00015158,2]
[398061989,1765345855607,-601.72,0.00015158,2]
[398061990,1765345855621,-500.0,0.00015158,2]
[398061991,1765345855635,-540.34,0.00015158,2]
[398061992,1765345855652,-500.0,0.00015158,2]
[398061993,1765345855666,-730.02,0.00015158,2]
[398061994,1765345855682,-500.0,0.00015158,2]
[398061995,1765345855697,-500.0,0.00015158,2]
[398061996,1765345855712,-500.0,0.00015158,2]
[398061997,1765345855726,-500.0,0.00015158,2]
[398061998,1765345855740,-500.0,0.00015158,2]
[398061999,1765345855755,-592.93,0.00015158,2]
[398062000,1765345855768,-824.74,0.00015158,2]
[398062001,1765345855783,-500.0,0.00015158,2]
[398062002,1765345855798,-500.0,0.00015158,2]
[398062003,1765345855812,-2146.16,0.00015158,2]
[398062004,1765345855828,-554.55895748,0.00015158,2]
[398062005,1765345855838,-500.0,0.00015158,2]
[398062006,1765345855847,-500.0,0.00015158,2]
[398062007,1765345855856,-500.0,0.00015158,2]
[398062008,1765345855866,-1064.27,0.00015158,2]
[398062009,1765345855875,-500.0,0.00015158,2]
[398062010,1765345855884,-500.0,0.00015158,2]
[398062011,1765345855894,-732.8,0.00015158,2]
[398062012,1765345855903,-500.0,0.00015158,2]
[398062013,1765345855912,-615.7,0.00015158,2]
[398062014,1765345855921,-240.67700846,0.00015158,2]
[398062015,1765345855931,-788.68,0.00015158,2]
[398062016,1765345855942,-662.05,0.00015158,2]
[398062017,1765345855951,-667.34,0.00015158,2]
[398062018,1765345855960,-500.0,0.00015158,2]
[398062019,1765345855971,-500.0,0.00015158,2]
[398062020,1765345855980,-500.0,0.00015158,2]
[398062021,1765345855989,-807.33,0.00015158,2]
[398062022,1765345855999,-535.0,0.00015158,2]
[398062023,1765345856007,-500.0,0.00015158,2]
[398062024,1765345856017,-500.0,0.00015158,2]
[398062025,1765345856027,-500.0,0.00015158,2]
[398062026,1765345856036,-974.63,0.00015158,2]
[398062027,1765345856046,-500.0,0.00015158,2]
[398062028,1765345856055,-500.0,0.00015158,2]
[398062029,1765345856064,-500.0,0.00015158,2]
[398062030,1765345856074,-500.0,0.00015158,2]
[398062031,1765345856480,-806.85,0.00015158,2]
[398062032,1765345856506,-500.0,0.00015158,2]
[398062033,1765345856522,-585.33,0.00015158,2]
[398062034,1765345856531,-500.0,0.00015158,2]
[398062035,1765345856541,-736.87,0.00015158,2]
[398062036,1765345856550,-500.0,0.00015158,2]
[398062037,1765345856559,-500.0,0.00015158,2]
[398062038,1765345856568,-500.0,0.00015158,2]
[398062039,1765345856579,-500.0,0.00015158,2]
[398062040,1765345856588,-645.5359929,0.00015158,2]
[398062041,1765345856597,-726.99,0.00015158,2]
[398062042,1765345856608,-500.0,0.00015158,2]
[398062043,1765345856617,-813.32,0.00015158,2]
[398062044,1765345856626,-2067.42,0.00015158,2]
[398062045,1765345856636,-3089.79,0.00015158,2]
[398062046,1765345856646,-1000.0,0.00015184,3]
[398062047,1765345856655,-495.0,0.00015194,2]
[398062048,1765345856665,-500.0,0.00015197,2]
[398062049,1765345856674,-500.0,0.00015197,2]
[398062050,1765345856683,-500.0,0.00015197,2]
[398062051,1765345856693,-516.55,0.00015197,2]
[398062052,1765345856703,-500.0,0.00015197,2]
[398062053,1765345856712,-170.27,0.000152,2]
[398062054,1765345856721,-266.0,0.00015209,2]
[398062055,1765345856731,-2000.0,0.00015218,2]
[398062056,1765345856740,-202.13941671,0.00015244,2]
[398062057,1765345856750,-502.76831288,0.00015244,2]
[398062058,1765345856759,-409.61249368,0.00015256,2]
[398062059,1765345856768,-500.0,0.00015256,2]
[398062060,1765345856778,-500.0,0.00015257,2]
[398062061,1765345856789,-500.0,0.00015257,2]
[398062062,1765345856798,-901.25,0.00015257,2]
[398062063,1765345856808,-500.0,0.00015257,2]
[398062064,1765345856817,-150.28749158,0.00015257,2]
[398062065,1765345856827,-540.35425811,0.00015257,2]
[398062066,1765345856836,-506.91976757,0.00015258,2]
[398062067,1765345856846,-500.0,0.00015258,2]
[398062068,1765345856855,-500.0,0.00015258,2]
[398062069,1765345856865,-500.0,0.00015258,2]
[398062070,1765345856874,-500.0,0.00015258,2]
[398062071,1765345856884,-580.45,0.00015258,2]
[398062072,1765345856893,-500.0,0.00015258,2]
[398062073,1765345856903,-500.0,0.00015258,2]
[398062074,1765345856912,-500.0,0.00015258,2]
[398062075,1765345856922,-512.90525764,0.00015258,2]
[398062076,1765345856932,-273.87,0.00015258,2]
[398062077,1765345856942,-500.0,0.00015258,2]
[398062078,1765345856951,-500.0,0.00015258,2]
[398062079,1765345856960,-508.12531904,0.00015258,2]
[398062080,1765345856970,-500.0,0.00015258,2]
[398062081,1765345856980,-500.0,0.00015258,2]
[398062082,1765345856991,-569.02836001,0.00015258,2]
[398062083,1765345857000,-208.58610108,0.00015258,2]
[398062084,1765345857011,-500.0,0.00015258,2]
[398062085,1765345857021,-637.66,0.00015258,2]
[398062086,1765345857033,-500.0,0.00015258,2]
[398062087,1765345857043,-500.0,0.00015258,2]
[398062088,1765345857052,-500.0,0.00015258,2]
[398062089,1765345857061,-245.4875105,0.00015258,2]
[398062090,1765345857071,-500.0,0.00015258,2]
[398062091,1765345857080,-505.60292796,0.00015258,2]
[398062092,1765345857089,-500.0,0.00015258,2]
[398062093,1765345857099,-500.0,0.00015258,2]
[398062094,1765345857111,-504.79085267,0.00015258,2]
[398062095,1765345857121,-500.0,0.00015258,2]
[398062096,1765345857131,-509.15571901,0.00015258,2]
[398062097,1765345857140,-500.0,0.00015258,2]
[398062098,1765345857149,-377.23671323,0.00015258,2]
[398062099,1765345857158,-500.0,0.00015258,2]
[398062100,1765345857167,-500.0,0.00015258,2]
[398062101,1765345857177,-500.0,0.00015258,2]
[398062102,1765345857186,-500.0,0.00015258,2]
[398062103,1765345857195,-723.18,0.00015258,2]
[398062104,1765345857204,-500.0,0.00015258,2]
[398062105,1765345857213,-1045.75,0.00015258,2]
[398062106,1765345857222,-500.0,0.00015258,2]
[398062107,1765345857231,-500.0,0.00015258,2]
[398062108,1765345857242,-748.26,0.00015258,2]
[398062109,1765345857251,-500.0,0.00015258,2]
[398062110,1765345857260,-500.0,0.00015258,2]
[398062111,1765345857270,-500.0,0.00015258,2]
[398062112,1765345857279,-500.0,0.00015258,2]
[398062113,1765345857289,-500.0,0.00015258,2]
[398062114,1765345857298,-500.0,0.00015258,2]
[398062115,1765345857308,-602.53,0.00015258,2]
[398062116,1765345857318,-500.0,0.00015258,2]
[398062117,1765345857328,-500.0,0.00015258,2]
[398062118,1765345857337,-500.0,0.00015258,2]
[398062119,1765345857347,-500.0,0.00015258,2]
[398062120,1765345857356,-499.69603708,0.00015258,2]
[398062121,1765345857366,-500.0,0.00015258,2]
[398062122,1765345857375,-536.32,0.00015258,2]
[398062123,1765345857385,-500.0,0.00015258,2]
[398062124,1765345857395,-500.0,0.00015258,2]
[398062125,1765345857404,-514.80456097,0.00015258,2]
[398062126,1765345857414,-500.0,0.00015258,2]
[398062127,1765345857423,-500.0,0.00015258,2]
[398062128,1765345857432,-500.0,0.00015258,2]
[398062129,1765345857441,-500.0,0.00015258,2]
[398062130,1765345857451,-672.23,0.00015258,2]
[398062131,1765345857459,-500.0,0.00015258,2]
[398062132,1765345857469,-500.0,0.00015258,2]
[398062133,1765345857479,-500.0,0.00015258,2]
[398062134,1765345857488,-500.0,0.00015258,2]
[398062135,1765345857498,-500.0,0.00015258,2]
[398062136,1765345857506,-500.0,0.00015258,2]
[398062137,1765345857515,-500.0,0.00015258,2]
[398062138,1765345857524,-538.98,0.00015258,2]
[398062139,1765345857533,-500.0,0.00015258,2]
[398062140,1765345857542,-500.0,0.00015258,2]
[398062141,1765345857551,-500.0,0.00015258,2]
[398062142,1765345857561,-500.0,0.00015258,2]
[398062143,1765345857570,-500.0,0.00015258,2]
[398062144,1765345857579,-500.0,0.00015258,2]
[398062145,1765345857588,-500.0,0.00015258,2]
[398062146,1765345857598,-500.0,0.00015258,2]
[398062147,1765345857607,-500.0,0.00015258,2]
[398062148,1765345857616,-500.0,0.00015258,2]
[398062149,1765345857625,-500.0,0.00015258,2]
[398062150,1765345857634,-649.8,0.00015258,2]
[398062151,1765345857643,-500.0,0.00015258,2]
[398062152,1765345857653,-375.95875874,0.00015258,2]
[398062153,1765345857662,-500.0,0.00015258,2]
[398062154,1765345857672,-510.31096598,0.00015258,2]
[398062155,1765345857681,-500.0,0.00015258,2]
[398062156,1765345857690,-500.0,0.00015258,2]
[398062157,1765345857699,-500.0,0.00015258,2]
[398062158,1765345857708,-500.0,0.00015258,2]
[398062159,1765345857717,-500.0,0.00015258,2]
[398062160,1765345857726,-500.0,0.00015258,2]
[398062161,1765345857735,-505.83447233,0.00015258,2]
[398062162,1765345857744,-500.0,0.00015258,2]
[398062163,1765345857753,-500.0,0.00015258,2]
[398062164,1765345857762,-500.0,0.00015258,2]
[398062165,1765345857771,-500.0,0.00015258,2]
[398062166,1765345857781,-500.0,0.00015258,2]
[398062167,1765345857790,-500.0,0.00015258,2]
[398062168,1765345857800,-500.0,0.00015258,2]
[398062169,1765345857810,-500.0,0.00015258,2]
[398062170,1765345857820,-500.0,0.00015258,2]
[398062171,1765345857829,-500.0,0.00015258,2]
[398062172,1765345857839,-544.23,0.00015258,2]
[398062173,1765345857849,-500.0,0.00015258,2]
[398062174,1765345857859,-500.0,0.00015258,2]
[398062175,1765345857868,-500.0,0.00015258,2]
[398062176,1765345857878,-500.0,0.00015258,2]
[398062177,1765345857887,-500.0,0.00015258,2]
[398062178,1765345857896,-500.0,0.00015258,2]
[398062179,1765345857906,-500.0,0.00015258,2]
[398062180,1765345857915,-500.0,0.00015258,2]
[398062181,1765345857925,-500.0,0.00015258,2]
[398062182,1765345857934,-500.0,0.00015258,2]
[398062183,1765345857943,-506.06694286,0.00015258,2]
[398062184,1765345857952,-500.0,0.00015258,2]
[398062185,1765345857960,-500.0,0.00015258,2]
[398062186,1765345857970,-500.0,0.00015258,2]
[398062187,1765345857979,-500.0,0.00015258,2]
[398062188,1765345857989,-500.0,0.00015258,2]
[398062189,1765345857998,-560.43,0.00015258,2]
[398062190,1765345858007,-500.0,0.00015258,2]
[398062191,1765345858017,-500.0,0.00015258,2]
[398062192,1765345858027,-505.97478743,0.00015258,2]
[398062193,1765345858038,-500.0,0.00015258,2]
[398062194,1765345858047,-500.0,0.00015258,2]
[398062195,1765345858056,-500.0,0.00015258,2]
[398062196,1765345858065,-500.0,0.00015258,2]
[398062197,1765345858075,-500.0,0.00015258,2]
[398062198,1765345858084,-500.0,0.00015258,2]
[398062199,1765345858093,-500.0,0.00015258,2]
[398062200,1765345858103,-686.42,0.00015258,2]
[398062201,1765345858112,-321.15424876,0.00015258,2]
[398062202,1765345858122,-500.0,0.00015258,2]
[398062203,1765345858132,-500.0,0.00015258,2]
[398062204,1765345858141,-500.0,0.00015258,2]
[398062205,1765345858150,-551.35,0.00015258,2]
[398062206,1765345858159,-500.0,0.00015258,2]
[398062207,1765345858168,-536.01,0.00015258,2]
[398062208,1765345858178,-500.0,0.00015258,2]
[398062209,1765345858187,-642.28,0.00015258,2]
[398062210,1765345858197,-500.0,0.00015258,2]
[398062211,1765345858207,-500.0,0.00015258,2]
[398062212,1765345858216,-500.0,0.00015258,2]
[398062213,1765345858225,-500.0,0.00015258,2]
[398062214,1765345858234,-826.63,0.00015258,2]
[398062215,1765345858243,-500.0,0.00015258,2]
[398062216,1765345858252,-511.50276985,0.00015258,2]
[398062217,1765345858261,-500.0,0.00015258,2]
[398062218,1765345858270,-500.0,0.00015258,2]
[398062219,1765345858279,-500.0,0.00015258,2]
[398062220,1765345858288,-771.26,0.00015258,2]
[398062221,1765345858297,-500.0,0.00015258,2]
[398062222,1765345858306,-510.12,0.00015258,2]
[398062223,1765345858316,-510.00808827,0.00015258,2]
[398062224,1765345858325,-503.81462709,0.00015258,2]
[398062225,1765345858335,-502.19568648,0.00015258,2]
[398062226,1765345858349,-500.0,0.00015258,2]
[398062227,1765345858359,-500.0,0.00015258,2]
[398062228,1765345858368,-500.0,0.00015258,2]
[398062229,1765345858378,-500.0,0.00015258,2]
[398062230,1765345858387,-500.0,0.00015258,2]
[398062231,1765345858397,-500.0,0.00015258,2]
[398062232,1765345858406,-500.0,0.00015258,2]
[398062233,1765345858415,-500.0,0.00015258,2]
[398062234,1765345858425,-500.0,0.00015258,2]
[398062235,1765345858434,-500.0,0.00015258,2]
[398062236,1765345858443,-500.0,0.00015258,2]
[398062237,1765345858452,-580.24239152,0.00015258,2]
[398062238,1765345858462,-500.0,0.00015258,2]
[398062239,1765345858471,-707.84,0.00015258,2]
[398062240,1765345858481,-500.0,0.00015258,2]
[398062241,1765345858491,-550.95661819,0.00015258,2]
[398062242,1765345858500,-500.0,0.00015258,2]
[398062243,1765345858510,-500.0,0.00015258,2]
[398062244,1765345858519,-500.0,0.00015258,2]
[398062245,1765345858529,-500.0,0.00015258,2]
[398062246,1765345858538,-500.0,0.00015258,2]
[398062247,1765345858547,-500.0,0.00015258,2]
[398062248,1765345858557,-500.0,0.00015258,2]
[398062249,1765345858567,-554.39,0.00015258,2]
[398062250,1765345858576,-500.0,0.00015258,2]
[398062251,1765345858586,-500.0,0.00015258,2]
[398062252,1765345858595,-500.0,0.00015258,2]
[398062253,1765345858604,-500.0,0.00015258,2]
[398062254,1765345858614,-1195.1,0.00015258,2]
[398062255,1765345858623,-500.0,0.00015258,2]
[398062256,1765345858632,-500.0,0.00015258,2]
[398062257,1765345858642,-500.0,0.00015258,2]
[398062258,1765345858651,-500.0,0.00015258,2]
[398062259,1765345858660,-500.0,0.00015258,2]
[398062260,1765345858670,-500.0,0.00015258,2]
[398062261,1765345858679,-502.5328299,0.00015258,2]
[398062262,1765345858688,-500.0,0.00015258,2]
[398062263,1765345858698,-500.0,0.00015258,2]
[398062264,1765345858708,-703.61,0.00015258,2]
[398062265,1765345858717,-500.0,0.00015258,2]
[398062266,1765345858727,-811.17,0.00015258,2]
[398062267,1765345858736,-505.10008807,0.00015258,2]
[398062268,1765345858745,-500.0,0.00015258,2]
[398062269,1765345858755,-500.0,0.00015258,2]
[398062270,1765345858764,-500.0,0.00015258,2]
[398062271,1765345858774,-500.0,0.00015258,2]
[398062272,1765345858783,-500.0,0.00015258,2]
[398062273,1765345858793,-500.0,0.00015258,2]
[398062274,1765345858803,-500.0,0.00015258,2]
[398062275,1765345858812,-938.82,0.00015258,2]
[398062276,1765345858822,-500.0,0.00015258,2]
[398062277,1765345858831,-500.0,0.00015258,2]
[398062278,1765345858839,-965.55,0.00015258,2]
[398062279,1765345858848,-500.0,0.00015258,2]
[398062280,1765345858858,-500.0,0.00015258,2]
[398062281,1765345858867,-500.0,0.00015258,2]
[398062282,1765345858877,-500.0,0.00015258,2]
[398062283,1765345858886,-444.37074717,0.00015258,2]
[398062284,1765345858895,-500.0,0.00015258,2]
[398062285,1765345858905,-500.0,0.00015258,2]
[398062286,1765345858914,-500.0,0.00015258,2]
[398062287,1765345858923,-500.0,0.00015258,2]
[398062288,1765345858932,-500.0,0.00015258,2]
[398062289,1765345858942,-500.0,0.00015258,2]
[398062290,1765345858951,-500.0,0.00015258,2]
[398062291,1765345858960,-500.0,0.00015258,2]
[398062292,1765345858969,-500.0,0.00015258,2]
[398062293,1765345858978,-500.0,0.00015258,2]
[398062294,1765345858987,-500.0,0.00015258,2]
[398062295,1765345858996,-500.0,0.00015258,2]
[398062296,1765345859005,-500.0,0.00015258,2]
[398062297,1765345859014,-500.0,0.00015258,2]
[398062298,1765345859023,-500.0,0.00015258,2]
[398062299,1765345859038,-500.0,0.00015258,2]
[398062300,1765345859049,-823.93,0.00015258,2]
[398062301,1765345859058,-500.0,0.00015258,2]
[398062302,1765345859068,-500.0,0.00015258,2]
[398062303,1765345859077,-600.28,0.00015258,2]
[398062304,1765345859086,-500.0,0.00015258,2]
[398062305,1765345859096,-500.0,0.00015258,2]
[398062306,1765345859105,-876.64,0.00015258,2]
[398062307,1765345859114,-793.7,0.00015258,2]
[398062308,1765345859123,-500.0,0.00015258,2]
[398062309,1765345859132,-1362.71,0.00015258,2]
[398062310,1765345859141,-500.0,0.00015258,2]
[398062311,1765345859151,-500.0,0.00015258,2]
[398062312,1765345859159,-538.76,0.00015258,2]
[398062313,1765345859169,-500.0,0.00015258,2]
[398062314,1765345859178,-173.82758074,0.00015258,2]
[398062315,1765345859188,-500.0,0.00015258,2]
[398062316,1765345859197,-500.0,0.00015258,2]
[398062317,1765345859207,-500.0,0.00015258,2]
[398062318,1765345859216,-500.0,0.00015258,2]
[398062319,1765345859226,-506.7,0.00015258,2]
[398062320,1765345859235,-534.55967451,0.00015258,2]
[398062321,1765345859244,-500.0,0.00015258,2]
[398062322,1765345859254,-500.0,0.00015258,2]
[398062323,1765345859263,-500.0,0.00015258,2]
[398062324,1765345859272,-500.0,0.00015258,2]
[398062325,1765345859281,-940.03,0.00015258,2]
[398062326,1765345859290,-500.0,0.00015258,2]
[398062327,1765345859299,-500.0,0.00015258,2]
[398062328,1765345859309,-500.0,0.00015258,2]
[398062329,1765345859318,-500.0,0.00015258,2]
[398062330,1765345859327,-699.2,0.00015258,2]
[398062331,1765345859336,-500.0,0.00015258,2]
[398062332,1765345859345,-500.0,0.00015258,2]
[398062333,1765345859355,-500.0,0.00015258,2]
[398062334,1765345859366,-500.0,0.00015258,2]
[398062335,1765345859375,-501.94030044,0.00015258,2]
[398062336,1765345859384,-500.0,0.00015258,2]
[398062337,1765345859393,-500.0,0.00015258,2]
[398062338,1765345859402,-500.0,0.00015258,2]
[398062339,1765345859412,-500.0,0.00015258,2]
[398062340,1765345859421,-500.0,0.00015258,2]
[398062341,1765345859431,-500.0,0.00015258,2]
[398062342,1765345859440,-500.0,0.00015258,2]
[398062343,1765345859450,-595.5553164,0.00015258,2]
[398062344,1765345859603,-500.0,0.00015258,2]
[398062345,1765345859636,-616.45,0.00015258,2]
[398062346,1765345859646,-500.0,0.00015258,2]
[398062347,1765345859655,-500.0,0.00015258,2]
[398062348,1765345859666,-566.8,0.00015258,2]
[398062349,1765345859675,-818.42,0.00015258,2]
[398062350,1765345859684,-577.65159223,0.00015258,2]
[398062351,1765345859694,-500.0,0.00015258,2]
[398062352,1765345859704,-883.88,0.00015258,2]
[398062353,1765345859713,-500.0,0.00015258,2]
[398062354,1765345859723,-500.0,0.00015258,2]
[398062355,1765345859732,-500.0,0.00015258,2]
[398062356,1765345859742,-500.0,0.00015258,2]
[398062357,1765345859753,-500.0,0.00015258,2]
[398062358,1765345859762,-779.92,0.00015258,2]
[398062359,1765345859771,-501.40949962,0.00015258,2]
[398062360,1765345859781,-500.0,0.00015258,2]
[398062361,1765345859790,-240.33,0.00015258,2]
[398062362,1765345859799,-239.86,0.00015258,2]
[398062363,1765345859809,-516.55,0.00015258,2]
[398062364,1765345859819,-516.55,0.00015258,2]
[398062365,1765345859828,-499.37185839,0.00015258,2]
[398062366,1765345859837,-753.41,0.00015258,2]
[398062367,1765345859846,-396.5543598,0.00015258,2]
[398062368,1765345859855,-537.08477109,0.00015258,2]
[398062369,1765345859864,-500.0,0.00015258,2]
[398062370,1765345859873,-898.15,0.00015258,2]
[398062371,1765345859882,-500.0,0.00015258,2]
[398062372,1765345859891,-558.55,0.00015258,2]
[398062373,1765345859900,-500.0,0.00015258,2]
[398062374,1765345859909,-500.0,0.00015258,2]
[398062375,1765345859918,-500.0,0.00015258,2]
[398062376,1765345859928,-500.0,0.00015258,2]
[398062377,1765345859937,-784.69,0.00015258,2]
[398062378,1765345859946,-308.81818151,0.00015258,2]
[398062379,1765345859955,-500.0,0.00015258,2]
[398062380,1765345859965,-550.47,0.00015258,2]
[398062381,1765345859974,-500.0,0.00015258,2]
[398062382,1765345859983,-500.0,0.00015258,2]
[398062383,1765345859992,-536.05,0.00015258,2]
[398062384,1765345860002,-575.64179176,0.00015258,2]
[398062385,1765345860011,-500.0,0.00015258,2]
[398062386,1765345860021,-503.33819325,0.00015258,2]
[398062387,1765345860030,-790.76,0.00015258,2]
[398062388,1765345860043,-500.0,0.00015258,2]
[398062389,1765345860053,-500.0,0.00015258,2]
[398062390,1765345860062,-500.0,0.00015258,2]
[398062391,1765345860072,-500.0,0.00015258,2]
[398062392,1765345860081,-956.77,0.00015258,2]
[398062393,1765345860090,-500.0,0.00015258,2]
[398062394,1765345860099,-589.77429355,0.00015258,2]
[398062395,1765345860108,-500.0,0.00015258,2]
[398062396,1765345860117,-539.44,0.00015258,2]
[398062397,1765345860126,-500.0,0.00015258,2]
[398062398,1765345860135,-500.0,0.00015258,2]
[398062399,1765345860144,-500.0,0.00015258,2]
[398062400,1765345860153,-1245.28,0.00015258,2]
[398062401,1765345860163,-500.0,0.00015258,2]
[398062402,1765345860172,-504.31325704,0.00015258,2]
[398062403,1765345860182,-500.0,0.00015258,2]
[398062404,1765345860192,-500.0,0.00015258,2]
[398062405,1765345860201,-800.59,0.00015258,2]
[398062406,1765345860211,-500.0,0.00015258,2]
[398062407,1765345860220,-500.0,0.00015258,2]
[398062408,1765345860230,-500.0,0.00015258,2]
[398062409,1765345860239,-500.0,0.00015258,2]
[398062410,1765345860249,-500.0,0.00015258,2]
[398062411,1765345860258,-500.0,0.00015258,2]
[398062412,1765345860268,-512.33159217,0.00015258,2]
[398062413,1765345860277,-995.29,0.00015258,2]
[398062414,1765345860286,-638.89,0.00015258,2]
[398062415,1765345860297,-500.0,0.00015258,2]
[398062416,1765345860307,-500.0,0.00015258,2]
[398062417,1765345860319,-500.0,0.00015258,2]
[398062418,1765345860329,-500.0,0.00015258,2]
[398062419,1765345860338,-500.0,0.00015258,2]
[398062420,1765345860348,-500.0,0.00015258,2]
[398062421,1765345860359,-500.0,0.00015258,2]
[398062422,1765345860368,-1152.1,0.00015258,2]
[398062423,1765345860377,-500.0,0.00015258,2]
[398062424,1765345860387,-880.06,0.00015258,2]
[398062425,1765345860396,-860.5,0.00015258,2]
[398062426,1765345860406,-500.0,0.00015258,2]
[398062427,1765345860416,-500.0,0.00015258,2]
[398062428,1765345860426,-500.0,0.00015258,2]
[398062429,1765345860436,-500.0,0.00015258,2]
[398062430,1765345860446,-500.0,0.00015258,2]
[398062431,1765345860458,-500.0,0.00015258,2]
[398062432,1765345860468,-500.0,0.00015258,2]
[398062433,1765345860478,-502.21385434,0.00015258,2]
[398062434,1765345860488,-577.31,0.00015258,2]
[398062435,1765345860498,-500.0,0.00015258,2]
[398062436,1765345860507,-500.0,0.00015258,2]
[398062437,1765345860517,-500.0,0.00015258,2]
[398062438,1765345860527,-500.0,0.00015258,2]
[398062439,1765345860536,-500.0,0.00015258,2]
[398062440,1765345860546,-500.0,0.00015258,2]
[398062441,1765345860555,-632.08117326,0.00015258,2]
[398062442,1765345860565,-500.0,0.00015258,2]
[398062443,1765345860574,-500.0,0.00015258,2]
[398062444,1765345860584,-500.0,0.00015258,2]